[Event "Masterklassen 2025"]
[Site "Uppsala, Sweden"]
[Date "2025.06.29"]
[Round "2.12"]
[White "Ask, Josef"]
[Black "Granath, Jonas"]
[Result "0-1"]
[TimeControl "90 min for 40 move + 30 min with an increment of 30 sec starting move 1"]
[WhiteTitle "FM"]
[WhiteFideId "1704583"]
[BlackFideId "1761013"]
[WhiteElo "2121"]
[BlackElo "2008"]

1. e4 {[%clk 01:30:57]} {[%emt 00:00:03]} e5 {[%clk 01:30:50]} {[%emt
00:00:10]} 2. d4 {[%clk 01:31:12]} {[%emt 00:00:16]} exd4 {[%clk 01:31:13]}
{[%emt 00:00:07]} 3. Bb5 {[%clk 01:31:16]} {[%emt 00:00:25]} a6 {[%clk
01:31:07]} {[%emt 00:00:36]} 4. Ba4 {[%clk 01:31:41]} {[%emt 00:00:05]} Nf6
{[%clk 01:05:40]} {[%emt 00:25:57]} 5. Nf3 {[%clk 01:30:00]} {[%emt 00:02:11]}
Be7 {[%clk 01:01:48]} {[%emt 00:04:22]} 6. Nxd4 {[%clk 01:24:20]} {[%emt
00:06:09]} O-O {[%clk 00:53:19]} {[%emt 00:09:00]} 7. e5 {[%clk 01:23:07]}
{[%emt 00:01:44]} Ne4 {[%clk 00:51:54]} {[%emt 00:01:54]} 8. Nf5 {[%clk
01:16:44]} {[%emt 00:06:53]} d6 {[%clk 00:48:35]} {[%emt 00:03:49]} 9. Nxe7+
{[%emt 00:01:11]} Qxe7 {[%clk 00:48:54]} {[%emt 00:00:10]} 10. O-O {[%clk
01:15:54]} {[%emt 00:00:40]} Qxe5 {[%clk 00:40:25]} {[%emt 00:08:59]} 11. c3
{[%clk 01:11:03]} {[%emt 00:05:22]} Nc5 {[%clk 00:35:57]} {[%emt 00:04:57]} 12.
Re1 {[%clk 01:09:38]} {[%emt 00:01:55]} Qf6 {[%clk 00:35:59]} {[%emt 00:00:27]}
13. Bc2 {[%clk 01:08:48]} {[%emt 00:01:21]} Bf5 {[%clk 00:35:49]} {[%emt
00:00:41]} 14. b4 {[%clk 01:08:11]} {[%emt 00:01:07]} Bxc2 {[%clk 00:35:21]}
{[%emt 00:00:57]} 15. Qxc2 {[%clk 01:08:36]} {[%emt 00:00:05]} Ne6 {[%clk
00:32:52]} {[%emt 00:02:59]} 16. f4 {[%clk 01:03:45]} {[%emt 00:05:21]} g6
{[%clk 00:20:55]} {[%emt 00:12:27]} 17. c4 {[%clk 00:49:46]} {[%emt 00:14:29]}
Nc6 {[%clk 00:18:26]} {[%emt 00:02:59]} 18. Bb2 {[%clk 00:47:24]} {[%emt
00:02:51]} Qxf4 {[%clk 00:15:05]} {[%emt 00:03:52]} 19. Re4 {[%clk 00:45:31]}
{[%emt 00:02:23]} Qf5 {[%clk 00:11:39]} {[%emt 00:03:56]} 20. Nd2 {[%clk
00:44:29]} {[%emt 00:01:33]} Ncd4 {[%clk 00:08:54]} {[%emt 00:03:14]} 21. Qd3
{[%clk 00:43:44]} {[%emt 00:01:14]} c5 {[%clk 00:08:47]} {[%emt 00:00:38]} 22.
Rf1 {[%clk 00:41:22]} {[%emt 00:02:52]} Qh5 {[%clk 00:08:06]} {[%emt 00:01:10]}
23. g4 {[%clk 00:30:14]} {[%emt 00:11:38]} Qh6 {[%clk 00:06:57]} {[%emt
00:01:40]} 24. Bc1 {[%clk 00:21:27]} {[%emt 00:09:18]} Rae8 {[%clk 00:06:20]}
{[%emt 00:01:06]} 25. Nb3 {[%clk 00:18:42]} {[%emt 00:03:15]} Qg7 {[%clk
00:06:38]} {[%emt 00:00:12]} 26. Kh1 {[%clk 00:16:00]} {[%emt 00:03:12]} f5
{[%clk 00:04:56]} {[%emt 00:02:12]} 27. gxf5 {[%clk 00:15:37]} {[%emt
00:00:54]} Rxf5 {[%clk 00:05:03]} {[%emt 00:00:22]} 28. Rxf5 {[%clk 00:14:12]}
{[%emt 00:01:55]} gxf5 {[%clk 00:04:29]} {[%emt 00:01:04]} 29. Re1 {[%clk
00:13:53]} {[%emt 00:00:49]} Kf7 {[%clk 00:04:31]} {[%emt 00:00:28]} 30. Rg1
{[%clk 00:13:04]} {[%emt 00:01:20]} Qe5 {[%clk 00:04:45]} {[%emt 00:00:16]} 31.
Rf1 {[%clk 00:09:27]} {[%emt 00:04:06]} Rg8 {[%clk 00:04:30]} {[%emt 00:00:45]}
32. Nxd4 {[%clk 00:07:23]} {[%emt 00:02:34]} Nxd4 {[%clk 00:04:54]} {[%emt
00:00:06]} 33. Bb2 {[%clk 00:05:55]} {[%emt 00:01:59]} Ke6 {[%clk 00:03:24]}
{[%emt 00:01:59]} 34. bxc5 {[%clk 00:03:33]} {[%emt 00:02:53]} dxc5 {[%clk
00:03:46]} {[%emt 00:00:07]} 35. Bc3 {[%clk 00:02:26]} {[%emt 00:01:37]} Qe4+
{[%clk 00:04:02]} {[%emt 00:00:14]} 36. Qxe4+ {[%emt 00:00:04]} fxe4 {[%clk
00:04:29]} {[%emt 00:00:02]} 37. Re1 {[%clk 00:01:45]} {[%emt 00:01:38]} Kf5
{[%clk 00:04:28]} {[%emt 00:00:30]} 38. Rf1+ {[%clk 00:01:15]} {[%emt
00:01:01]} Nf3 {[%clk 00:04:16]} {[%emt 00:00:42]} 39. Ba5 {[%clk 00:01:02]}
{[%emt 00:00:45]} Kf4 {[%clk 00:04:10]} {[%emt 00:00:34]} 40. Bb6 {[%clk
00:00:54]} {[%emt 00:00:39]} Rg5 {[%clk 00:04:10]} {[%emt 00:00:29]} 41. Bc7+
{[%clk 00:00:35]} {[%emt 00:00:49]} Ke3 {[%clk 00:04:14]} {[%emt 00:00:25]} 42.
Rb1 {[%clk 00:27:06]} {[%emt 00:04:03]} Kd4 {[%clk 00:25:46]} {[%emt 00:08:55]}
43. Bg3 {[%clk 00:23:43]} {[%emt 00:03:53]} Rg7 {[%clk 00:25:24]} {[%emt
00:00:52]} 44. Rc1 {[%clk 00:22:30]} {[%emt 00:01:43]} e3 {[%clk 00:23:25]}
{[%emt 00:02:29]} 45. Kg2 {[%clk 00:21:23]} {[%emt 00:01:37]} Ne5 {[%clk
00:20:41]} {[%emt 00:03:14]} 46. Kf1 {[%clk 00:19:44]} {[%emt 00:02:09]} Nxc4
{[%clk 00:18:40]} {[%emt 00:02:31]} 47. Ke2 {[%clk 00:19:49]} {[%emt 00:00:24]}
Re7 {[%clk 00:18:06]} {[%emt 00:01:04]} 48. Rf1 {[%clk 00:17:52]} {[%emt
00:02:28]} b5 {[%clk 00:10:29]} {[%emt 00:08:07]} 49. Bh4 {[%clk 00:16:43]}
{[%emt 00:01:39]} Re6 {[%clk 00:10:11]} {[%emt 00:00:48]} 50. Bf6+ {[%clk
00:15:40]} {[%emt 00:01:32]} Ke4 {[%clk 00:10:25]} {[%emt 00:00:17]} 51. Bh4
{[%clk 00:15:17]} {[%emt 00:00:54]} Nd2 {[%clk 00:08:57]} {[%emt 00:01:58]} 52.
Rf7 {[%clk 00:14:44]} {[%emt 00:01:03]} c4 {[%clk 00:07:57]} {[%emt 00:01:29]}
53. Bg5 {[%clk 00:11:31]} {[%emt 00:03:43]} Kd4 {[%clk 00:06:51]} {[%emt
00:01:35]} 54. Bf6+ {[%clk 00:09:44]} {[%emt 00:02:17]} Kd5 {[%clk 00:05:43]}
{[%emt 00:01:38]} 55. Bg5 {[%clk 00:08:55]} {[%emt 00:01:21]} Ne4 {[%clk
00:05:50]} {[%emt 00:00:22]} 56. Bxe3 {[%clk 00:08:01]} {[%emt 00:01:23]} Nc3+
{[%clk 00:06:09]} {[%emt 00:00:11]} 57. Kf3 {[%clk 00:06:47]} {[%emt 00:01:44]}
Nxa2 {[%clk 00:06:24]} {[%emt 00:00:16]} 58. Rd7+ {[%clk 00:05:59]} {[%emt
00:01:19]} Kc6 {[%clk 00:06:28]} {[%emt 00:00:25]} 59. Ra7 {[%clk 00:05:57]}
{[%emt 00:00:32]} Nb4 {[%clk 00:06:45]} {[%emt 00:00:12]} 60. Bd2 {[%clk
00:05:43]} {[%emt 00:00:45]} Kc5 {[%clk 00:06:46]} {[%emt 00:00:29]} 61. Rxh7
{[%clk 00:05:41]} {[%emt 00:00:32]} Nd5 {[%clk 00:06:50]} {[%emt 00:00:27]} 62.
h4 {[%clk 00:04:23]} {[%emt 00:01:48]} c3 {[%clk 00:07:15]} {[%emt 00:00:05]}
63. Bg5 {[%clk 00:04:25]} {[%emt 00:00:28]} b4 {[%clk 00:05:42]} {[%emt
00:02:02]} 64. Rh8 {[%clk 00:04:19]} {[%emt 00:00:36]} b3 {[%clk 00:05:43]}
{[%emt 00:00:29]} 65. Rb8 {[%clk 00:03:33]} {[%emt 00:01:16]} b2 {[%clk
00:05:23]} {[%emt 00:00:50]} 66. h5 {[%clk 00:01:28]} {[%emt 00:02:35]} Rb6
{[%clk 00:05:25]} {[%emt 00:00:27]} 67. Rc8+ {[%clk 00:01:53]} {[%emt
00:00:06]} Kd4 {[%clk 00:05:41]} {[%emt 00:00:13]} 68. Rd8 {[%clk 00:01:04]}
{[%emt 00:01:20]} b1=Q {[%clk 00:05:38]} {[%emt 00:00:33]} 69. Be3+ {[%clk
00:01:27]} {[%emt 00:00:07]} Kc4 {[%clk 00:05:50]} {[%emt 00:00:17]} 70. Rc8+
{[%clk 00:01:18]} {[%emt 00:00:41]} Kd3 {[%clk 00:06:03]} {[%emt 00:00:16]} 71.
Bxb6 {[%clk 00:01:31]} {[%emt 00:00:17]} Qxb6 {[%clk 00:06:15]} {[%emt
00:00:18]} 0-1

[Event "Masterklassen 2025"]
[Site "Uppsala, Sweden"]
[Date "2025.06.29"]
[Round "2.13"]
[White "Tornberg, Carlos"]
[Black "Willstedt, Lukas"]
[Result "1-0"]
[TimeControl "90 min for 40 move + 30 min with an increment of 30 sec starting move 1"]
[WhiteFideId "1733478"]
[BlackFideId "1751913"]
[WhiteElo "2233"]
[BlackElo "2055"]

1. e4 {[%clk 01:30:58]} {[%emt 00:00:01]} e6 {[%clk 01:30:53]} {[%emt
00:00:08]} 2. d4 {[%clk 01:31:24]} {[%emt 00:00:04]} d5 {[%clk 01:31:19]}
{[%emt 00:00:04]} 3. Nc3 {[%clk 01:31:50]} {[%emt 00:00:03]} Nf6 {[%clk
01:31:43]} {[%emt 00:00:07]} 4. e5 {[%clk 01:32:12]} {[%emt 00:00:07]} Nfd7
{[%clk 01:32:05]} {[%emt 00:00:08]} 5. Nce2 {[%clk 01:32:39]} {[%emt 00:00:03]}
c5 {[%clk 01:32:16]} {[%emt 00:00:20]} 6. c3 {[%clk 01:33:04]} {[%emt
00:00:05]} Nc6 {[%clk 01:32:18]} {[%emt 00:00:28]} 7. Nf3 {[%clk 01:29:53]}
{[%emt 00:03:41]} a5 {[%clk 01:32:12]} {[%emt 00:00:36]} 8. Nf4 {[%clk
01:22:31]} {[%emt 00:07:51]} h6 {[%clk 01:27:34]} {[%emt 00:05:09]} 9. h4
{[%clk 01:18:46]} {[%emt 00:04:14]} a4 {[%clk 01:27:34]} {[%emt 00:00:30]} 10.
Bd3 {[%clk 01:14:19]} {[%emt 00:04:57]} Qb6 {[%clk 01:22:54]} {[%emt 00:05:10]}
11. Bc2 {[%clk 01:09:36]} {[%emt 00:05:13]} cxd4 {[%clk 01:21:07]} {[%emt
00:02:17]} 12. cxd4 {[%clk 01:06:32]} {[%emt 00:03:34]} Bb4+ {[%clk 01:21:09]}
{[%emt 00:00:28]} 13. Kf1 {[%clk 01:05:38]} {[%emt 00:01:24]} Qa6+ {[%clk
01:13:54]} {[%emt 00:07:46]} 14. Kg1 {[%clk 01:03:18]} {[%emt 00:02:49]} Nb6
{[%clk 01:06:44]} {[%emt 00:07:40]} 15. Rh3 {[%clk 00:58:03]} {[%emt 00:05:44]}
Bd7 {[%clk 00:53:01]} {[%emt 00:14:14]} 16. Nh5 {[%clk 00:49:23]} {[%emt
00:09:10]} g6 {[%clk 00:46:53]} {[%emt 00:06:38]} 17. Nf6+ {[%clk 00:48:45]}
{[%emt 00:01:08]} Kd8 {[%clk 00:44:42]} {[%emt 00:02:40]} 18. Ng4 {[%clk
00:39:29]} {[%emt 00:09:47]} Bf8 {[%clk 00:41:21]} {[%emt 00:03:51]} 19. Bf4
{[%clk 00:36:36]} {[%emt 00:03:23]} Nb4 {[%clk 00:38:17]} {[%emt 00:03:34]} 20.
Ne1 {[%clk 00:34:01]} {[%emt 00:03:05]} Rc8 {[%clk 00:31:17]} {[%emt 00:07:30]}
21. Rc3 {[%clk 00:29:19]} {[%emt 00:05:12]} Rxc3 {[%clk 00:27:44]} {[%emt
00:04:03]} 22. bxc3 {[%clk 00:29:47]} {[%emt 00:00:02]} Nxc2 {[%clk 00:28:13]}
{[%emt 00:00:02]} 23. Nxc2 {[%clk 00:27:57]} {[%emt 00:02:20]} Qc4 {[%clk
00:20:18]} {[%emt 00:08:24]} 24. Qd2 {[%clk 00:24:55]} {[%emt 00:03:31]} h5
{[%clk 00:20:22]} {[%emt 00:00:28]} 25. Bg5+ {[%clk 00:23:33]} {[%emt
00:01:52]} Kc7 {[%clk 00:20:48]} {[%emt 00:00:03]} 26. Nge3 {[%clk 00:20:37]}
{[%emt 00:03:26]} Qb5 {[%clk 00:19:44]} {[%emt 00:01:34]} 27. Qd1 {[%clk
00:19:45]} {[%emt 00:01:23]} Nc8 {[%clk 00:13:21]} {[%emt 00:06:52]} 28. Rb1
{[%clk 00:17:56]} {[%emt 00:02:19]} Qa5 {[%clk 00:13:49]} {[%emt 00:00:02]} 29.
c4 {[%clk 00:15:47]} {[%emt 00:02:39]} Bc6 {[%clk 00:12:59]} {[%emt 00:01:20]}
30. cxd5 {[%clk 00:14:17]} {[%emt 00:02:01]} Bxd5 {[%clk 00:12:57]} {[%emt
00:00:31]} 31. Nxd5+ {[%clk 00:14:26]} {[%emt 00:00:21]} Qxd5 {[%clk 00:12:56]}
{[%emt 00:00:32]} 32. Ne3 {[%clk 00:14:27]} {[%emt 00:00:28]} Qxa2 {[%clk
00:09:55]} {[%emt 00:03:31]} 33. Nc4 {[%clk 00:13:02]} {[%emt 00:01:55]} Kb8
{[%clk 00:02:05]} {[%emt 00:08:21]} 34. Qd3 {[%clk 00:11:21]} {[%emt 00:02:10]}
Bh6 {[%clk 00:00:33]} {[%emt 00:02:02]} 35. Qe4 {[%clk 00:11:08]} {[%emt
00:00:44]} Qxb1+ {[%clk 00:29:54]} {[%emt 00:00:33]} 1-0

[Event "Masterklassen 2025"]
[Site "Uppsala, Sweden"]
[Date "2025.06.29"]
[Round "2.14"]
[White "Lind, Jan-Olov"]
[Black "Mardell, Jimmy"]
[Result "1-0"]
[TimeControl "90 min for 40 move + 30 min with an increment of 30 sec starting move 1"]
[WhiteFideId "1701193"]
[BlackFideId "1705610"]
[WhiteElo "2057"]
[BlackElo "2227"]

1. e4 {[%clk 01:30:55]} {[%emt 00:00:05]} c5 {[%clk 01:30:53]} {[%emt
00:00:08]} 2. Nf3 {[%clk 01:31:11]} {[%emt 00:00:14]} e6 {[%clk 01:31:14]}
{[%emt 00:00:08]} 3. d3 {[%clk 01:31:27]} {[%emt 00:00:14]} Nc6 {[%clk
01:31:32]} {[%emt 00:00:12]} 4. g3 {[%clk 01:31:42]} {[%emt 00:00:15]} d6
{[%clk 01:31:50]} {[%emt 00:00:13]} 5. Bg2 {[%clk 01:31:38]} {[%emt 00:00:34]}
Nf6 {[%clk 01:32:07]} {[%emt 00:00:13]} 6. O-O {[%clk 01:31:51]} {[%emt
00:00:16]} Be7 {[%clk 01:32:27]} {[%emt 00:00:10]} 7. Re1 {[%clk 01:31:37]}
{[%emt 00:00:44]} O-O {[%clk 01:32:30]} {[%emt 00:00:28]} 8. c3 {[%clk
01:31:17]} {[%emt 00:00:49]} Bd7 {[%clk 01:32:08]} {[%emt 00:00:52]} 9. d4
{[%clk 01:30:38]} {[%emt 00:01:09]} cxd4 {[%clk 01:31:13]} {[%emt 00:01:26]} 10.
cxd4 {[%clk 01:30:51]} {[%emt 00:00:17]} d5 {[%clk 01:31:21]} {[%emt 00:00:21]}
11. e5 {[%clk 01:29:52]} {[%emt 00:01:29]} Ne4 {[%clk 01:31:21]} {[%emt
00:00:30]} 12. Nbd2 {[%clk 01:25:14]} {[%emt 00:05:08]} Nxd2 {[%clk 01:31:17]}
{[%emt 00:00:35]} 13. Bxd2 {[%clk 01:25:34]} {[%emt 00:00:09]} Qb6 {[%clk
01:29:59]} {[%emt 00:01:49]} 14. Bc3 {[%clk 01:21:41]} {[%emt 00:04:23]} a5
{[%clk 01:27:09]} {[%emt 00:03:20]} 15. Bf1 {[%clk 01:15:42]} {[%emt 00:06:28]}
Rfc8 {[%clk 01:22:41]} {[%emt 00:04:58]} 16. Bd3 {[%clk 01:13:50]} {[%emt
00:02:23]} Qd8 {[%clk 01:12:14]} {[%emt 00:10:57]} 17. Qb1 {[%clk 01:05:52]}
{[%emt 00:08:27]} h6 {[%clk 01:09:05]} {[%emt 00:03:40]} 18. Qd1 {[%clk
01:05:36]} {[%emt 00:00:45]} b5 {[%clk 01:04:20]} {[%emt 00:05:16]} 19. Bb1
{[%clk 01:00:33]} {[%emt 00:05:32]} b4 {[%clk 00:59:54]} {[%emt 00:04:57]} 20.
Qd3 {[%clk 01:00:43]} {[%emt 00:00:20]} g6 {[%clk 01:00:14]} {[%emt 00:00:10]}
21. Bd2 {[%clk 01:00:33]} {[%emt 00:00:40]} Bf8 {[%clk 00:56:54]} {[%emt
00:03:50]} 22. h4 {[%clk 00:58:16]} {[%emt 00:02:47]} h5 {[%clk 00:56:38]}
{[%emt 00:00:46]} 23. Bg5 {[%clk 00:52:09]} {[%emt 00:06:36]} Qb6 {[%clk
00:54:26]} {[%emt 00:02:43]} 24. Rd1 {[%clk 00:45:29]} {[%emt 00:07:10]} Ne7
{[%clk 00:50:22]} {[%emt 00:04:34]} 25. g4 {[%clk 00:35:25]} {[%emt 00:10:33]}
hxg4 {[%clk 00:47:43]} {[%emt 00:03:10]} 26. Nh2 {[%clk 00:34:43]} {[%emt
00:01:12]} Ba4 {[%clk 00:38:33]} {[%emt 00:09:40]} 27. b3 {[%clk 00:26:56]}
{[%emt 00:08:17]} Rc3 {[%clk 00:37:33]} {[%emt 00:01:29]} 28. Qd2 {[%clk
00:26:49]} {[%emt 00:00:38]} Bb5 {[%clk 00:23:31]} {[%emt 00:14:32]} 29. Nxg4
{[%clk 00:26:09]} {[%emt 00:01:09]} Ra7 {[%clk 00:11:51]} {[%emt 00:12:11]} 30.
Nf6+ {[%clk 00:25:20]} {[%emt 00:01:18]} Kh8 {[%clk 00:12:16]} {[%emt
00:00:06]} 31. Bh6 {[%clk 00:23:15]} {[%emt 00:02:35]} Qd8 {[%clk 00:11:36]}
{[%emt 00:01:10]} 32. Qg5 {[%clk 00:20:11]} {[%emt 00:03:33]} Ng8 {[%clk
00:04:31]} {[%emt 00:07:36]} 33. Bxf8 {[%clk 00:15:11]} {[%emt 00:05:29]} Qxf8
{[%clk 00:04:57]} {[%emt 00:00:05]} 34. Nxg8 {[%clk 00:15:12]} {[%emt
00:00:28]} Kxg8 {[%clk 00:03:04]} {[%emt 00:02:24]} 35. Re1 {[%clk 00:10:48]}
{[%emt 00:04:54]} Rac7 {[%clk 00:01:42]} {[%emt 00:01:51]} 36. h5 {[%clk
00:08:59]} {[%emt 00:02:18]} Be8 {[%clk 00:01:36]} {[%emt 00:00:37]} 37. Kg2
{[%clk 00:06:15]} {[%emt 00:03:15]} Qe7 {[%clk 00:01:11]} {[%emt 00:00:55]} 38.
Qg4 {[%clk 00:06:05]} {[%emt 00:00:40]} Kg7 {[%clk 00:00:53]} {[%emt 00:00:48]}
39. Rh1 {[%clk 00:05:21]} {[%emt 00:01:12]} Rc1 {[%clk 00:00:38]} {[%emt
00:00:47]} 40. Bxg6 {[%clk 00:03:53]} {[%emt 00:01:58]} Rxa1 {[%clk 00:00:37]}
{[%emt 00:00:32]} 41. Bd3+ {[%clk 00:03:53]} {[%emt 00:00:28]} Kh6 {[%clk
00:28:29]} {[%emt 00:02:38]} 42. Rxa1 {[%clk 00:33:10]} {[%emt 00:01:13]} Rc3
{[%clk 00:18:35]} {[%emt 00:10:24]} 43. f4 {[%clk 00:22:04]} {[%emt 00:11:36]}
f5 {[%clk 00:15:56]} {[%emt 00:03:09]} 44. exf6 {[%clk 00:12:51]} {[%emt
00:09:44]} Qxf6 {[%clk 00:16:22]} {[%emt 00:00:03]} 45. Re1 {[%clk 00:12:24]}
{[%emt 00:00:57]} Bf7 {[%clk 00:12:28]} {[%emt 00:04:25]} 46. Bg6 {[%clk
00:09:34]} {[%emt 00:03:19]} Rc6 {[%clk 00:07:24]} {[%emt 00:05:35]} 47. Qg5+
{[%clk 00:06:16]} {[%emt 00:03:48]} Qxg5+ {[%clk 00:07:49]} {[%emt 00:00:05]}
48. fxg5+ {[%clk 00:06:36]} {[%emt 00:00:10]} Kg7 {[%clk 00:08:13]} {[%emt
00:00:05]} 49. Bxf7 {[%clk 00:06:52]} {[%emt 00:00:15]} Kxf7 {[%clk 00:08:39]}
{[%emt 00:00:04]} 50. Rf1+ {[%clk 00:06:46]} {[%emt 00:00:35]} Kg7 {[%clk
00:08:26]} {[%emt 00:00:44]} 51. Rf6 {[%clk 00:06:13]} {[%emt 00:01:03]} Rc2+
{[%clk 00:08:05]} {[%emt 00:00:51]} 52. Kg3 {[%clk 00:06:19]} {[%emt 00:00:23]}
Rxa2 {[%clk 00:08:10]} {[%emt 00:00:26]} 53. h6+ {[%clk 00:06:29]} {[%emt
00:00:19]} Kg8 {[%clk 00:05:01]} {[%emt 00:03:40]} 54. g6 {[%clk 00:06:32]}
{[%emt 00:00:26]} 1-0

[Event "Masterklassen 2025"]
[Site "Uppsala, Sweden"]
[Date "2025.06.29"]
[Round "2.15"]
[White "Schriever-Abeln, Marius"]
[Black "Lundberg, David"]
[Result "0-1"]
[TimeControl "90 min for 40 move + 30 min with an increment of 30 sec starting move 1"]
[WhiteFideId "1752650"]
[BlackFideId "1707051"]
[WhiteElo "2052"]
[BlackElo "2193"]

1. Nf3 {[%clk 01:30:56]} {[%emt 00:00:02]} c5 {[%clk 01:30:50]} {[%emt
00:00:11]} 2. g3 {[%clk 01:31:16]} {[%emt 00:00:10]} Nc6 {[%clk 01:29:44]}
{[%emt 00:01:36]} 3. Bg2 {[%clk 01:31:38]} {[%emt 00:00:08]} g6 {[%clk
01:30:12]} {[%emt 00:00:02]} 4. c4 {[%clk 01:30:11]} {[%emt 00:01:57]} Bg7
{[%clk 01:30:32]} {[%emt 00:00:09]} 5. O-O {[%clk 01:29:43]} {[%emt 00:00:58]}
e5 {[%clk 01:30:28]} {[%emt 00:00:35]} 6. Nc3 {[%clk 01:27:28]} {[%emt
00:02:46]} d6 {[%clk 01:29:05]} {[%emt 00:01:53]} 7. d3 {[%clk 01:26:46]}
{[%emt 00:01:12]} Nge7 {[%clk 01:28:35]} {[%emt 00:00:59]} 8. a3 {[%clk
01:21:56]} {[%emt 00:05:21]} a5 {[%clk 01:26:04]} {[%emt 00:03:00]} 9. Rb1
{[%clk 01:17:38]} {[%emt 00:04:48]} O-O {[%clk 01:22:48]} {[%emt 00:03:46]} 10.
e3 {[%clk 01:04:30]} {[%emt 00:13:39]} f5 {[%clk 01:17:46]} {[%emt 00:05:31]}
11. Nd5 {[%clk 00:51:01]} {[%emt 00:13:59]} Nxd5 {[%clk 01:16:08]} {[%emt
00:02:08]} 12. cxd5 {[%clk 00:51:19]} {[%emt 00:00:13]} Ne7 {[%clk 01:16:23]}
{[%emt 00:00:13]} 13. b4 {[%clk 00:46:29]} {[%emt 00:05:21]} cxb4 {[%clk
01:13:35]} {[%emt 00:03:18]} 14. axb4 {[%clk 00:43:23]} {[%emt 00:03:36]} a4
{[%clk 01:12:38]} {[%emt 00:01:27]} 15. Qc2 {[%clk 00:35:32]} {[%emt 00:08:21]}
b5 {[%clk 01:08:27]} {[%emt 00:04:41]} 16. Ba3 {[%clk 00:32:55]} {[%emt
00:03:08]} Bd7 {[%clk 01:07:45]} {[%emt 00:01:11]} 17. Rbc1 {[%clk 00:27:49]}
{[%emt 00:05:37]} Rc8 {[%clk 01:07:27]} {[%emt 00:00:47]} 18. Qa2 {[%clk
00:27:23]} {[%emt 00:00:56]} Qb6 {[%clk 01:02:28]} {[%emt 00:05:30]} 19. Bb2
{[%clk 00:23:03]} {[%emt 00:04:49]} Kh8 {[%clk 00:46:39]} {[%emt 00:16:18]} 20.
Ng5 {[%clk 00:19:27]} {[%emt 00:04:07]} Bf6 {[%clk 00:34:49]} {[%emt 00:12:20]}
21. h4 {[%clk 00:15:53]} {[%emt 00:04:04]} Kg7 {[%clk 00:32:04]} {[%emt
00:03:15]} 22. Ne6+ {[%clk 00:13:56]} {[%emt 00:02:27]} Bxe6 {[%clk 00:30:51]}
{[%emt 00:01:43]} 23. dxe6 {[%clk 00:14:24]} {[%emt 00:00:02]} h6 {[%clk
00:20:48]} {[%emt 00:10:32]} 24. Kh2 {[%clk 00:11:46]} {[%emt 00:03:09]} g5
{[%clk 00:20:28]} {[%emt 00:00:50]} 25. h5 {[%clk 00:09:21]} {[%emt 00:02:55]}
g4 {[%clk 00:14:25]} {[%emt 00:06:33]} 26. Ba1 {[%clk 00:08:00]} {[%emt
00:01:50]} Qd8 {[%clk 00:10:28]} {[%emt 00:04:28]} 27. Bb7 {[%clk 00:05:05]}
{[%emt 00:03:26]} Rb8 {[%clk 00:09:00]} {[%emt 00:01:58]} 28. Bc6 {[%clk
00:04:17]} {[%emt 00:01:17]} Qb6 {[%clk 00:06:02]} {[%emt 00:03:28]} 29. Bd7
{[%clk 00:03:17]} {[%emt 00:01:30]} f4 {[%clk 00:05:19]} {[%emt 00:01:12]} 30.
gxf4 {[%clk 00:02:20]} {[%emt 00:01:29]} exf4 {[%clk 00:05:45]} {[%emt
00:00:04]} 31. exf4 {[%clk 00:01:12]} {[%emt 00:01:38]} Bd4 {[%clk 00:04:04]}
{[%emt 00:02:09]} 32. Bxd4+ {[%clk 00:00:34]} {[%emt 00:01:10]} Qxd4 {[%clk
00:04:28]} {[%emt 00:00:05]} 33. Qa1 {[%clk 00:00:35]} {[%emt 00:00:29]} Rxf4
{[%clk 00:03:37]} {[%emt 00:01:20]} 34. Qxd4+ {[%clk 00:00:33]} {[%emt
00:00:34]} Rxd4 {[%clk 00:04:04]} {[%emt 00:00:02]} 35. Rc7 {[%clk 00:00:36]}
{[%emt 00:00:27]} Kf6 {[%clk 00:01:35]} {[%emt 00:02:59]} 36. f3 {[%clk
00:00:43]} {[%emt 00:00:23]} g3+ {[%clk 00:01:04]} {[%emt 00:01:00]} 37. Kxg3
{[%clk 00:01:02]} {[%emt 00:00:11]} Rg8+ {[%clk 00:01:07]} {[%emt 00:00:28]} 38.
Kf2 {[%clk 00:00:55]} {[%emt 00:00:37]} Rxb4 {[%clk 00:01:19]} {[%emt
00:00:17]} 39. Rb7 {[%clk 00:00:39]} {[%emt 00:00:47]} Rb2+ {[%clk 00:01:05]}
{[%emt 00:00:43]} 40. Ke3 {[%clk 00:00:31]} {[%emt 00:00:39]} Rg5 {[%clk
00:00:37]} {[%emt 00:00:57]} 41. f4 {[%clk 00:07:47]} {[%emt 00:23:14]} Rg3+
{[%clk 00:20:51]} {[%emt 00:10:16]} 42. Kd4 {[%clk 00:07:08]} {[%emt 00:01:10]}
Rb4+ {[%clk 00:20:57]} {[%emt 00:00:23]} 43. Kc3 {[%clk 00:07:15]} {[%emt
00:00:24]} Nd5+ {[%clk 00:21:25]} {[%emt 00:00:01]} 44. Kd2 {[%clk 00:06:22]}
{[%emt 00:01:23]} Rg2+ {[%clk 00:21:52]} {[%emt 00:00:03]} 45. Kc1 {[%clk
00:06:17]} {[%emt 00:00:35]} Nc3 {[%clk 00:21:07]} {[%emt 00:01:15]} 0-1